[Event "75th Argentine Women-ch 2024"]
[Site "Buenos Aires"]
[Date "2024.11.26"]
[Round "6.10"]
[White "Manzoni, Camila"]
[Black "Perez Mosqueda, Valeria Ritzabeth"]
[Result "0-1"]
[ECO "A80"]
[WhiteElo "1521"]
[BlackElo "1476"]
[Annotator "NA RC"]
[PlyCount "128"]
[EventDate "2024.11.21"]
[EventType "swiss"]
[EventCountry "ARG"]
[SourceTitle "playchess.com"]
[Source "ChessBase"]
[SourceQuality "1"]
[TimeControl "5400+30"]

1. d4 {[%emt 0:00:03]} e6 {[%emt 0:00:21]} 2. Bf4 {[%emt 0:00:23]} f5 {[%emt 0:00:11]} 3. Nf3 {[%emt 0:00:25]} Nf6 {[%emt 0:00:13]} 4. e3 {[%emt 0:00:51]} Be7 {[%emt 0:00:14]} 5. Be2 {[%emt 0:01:13]} b6 {[%emt 0:00:12]} 6. Nbd2 {[%emt 0:01:18]} Bb7 {[%emt 0:00:18]} 7. O-O {[%emt 0:00:57]} h6 {[%emt 0:00:37]} 8. h3 {[%emt 0:01:08]} O-O {[%emt 0:00:16]} 9. Ne5 {[%emt 0:02:03]} d6 {[%emt 0:00:47]} 10. Ng6 {[%emt 0:00:52]} Rf7 {[%emt 0:01:14]} 11. Nxe7+ {[%emt 0:01:30]} Rxe7 {[%emt 0:00:04]} 12. Nf3 {[%emt 0:02:16]} Nbd7 {[%emt 0:00:40]} 13. Bh2 {[%emt 0:03:05]} Ne4 {[%emt 0:00:27]} 14. Nd2 {[%emt 0:03:10]} Ndf6 {[%emt 0:01:31]} 15. Nxe4 {[%emt 0:03:00]} Nxe4 {[%emt 0:00:20]} 16. c4 {[%emt 0:05:50]} g5 {[%emt 0:00:32]} 17. d5 {[%emt 0:00:35]} Qe8 {[%emt 0:01:59]} 18. Bh5 {[%emt 0:02:33]} Qf8 {[%emt 0:01:02]} 19. Bf3 {[%emt 0:02:21]} exd5 {[%emt 0:05:09]} 20. cxd5 {[%emt 0:00:57]} Qf7 {[%emt 0:01:27]} 21. Bh5 {[%emt 0:00:57]} Qxd5 {[%emt 0:00:20]} 22. Qxd5+ {[%emt 0:01:01]} Bxd5 {[%emt 0:00:02]} 23. Rfd1 {[%emt 0:00:55]} Bf7 {[%emt 0:00:41]} 24. Bxf7+ {[%emt 0:00:50]} Rxf7 {[%emt 0:00:05]} 25. Rac1 {[%emt 0:02:31]} h5 {[%emt 0:03:15]} 26. f3 {[%emt 0:01:56]} Nc5 {[%emt 0:01:35]} 27. b4 {[%emt 0:02:06]} Na6 {[%emt 0:03:14]} 28. a3 {[%emt 0:01:09]} Re8 {[%emt 0:00:25]} 29. Re1 {[%emt 0:01:54]} Rfe7 {[%emt 0:00:18]} 30. Kf2 {[%emt 0:00:32]} Rf7 {[%emt 0:02:13]} 31. Kg1 {[%emt 0:02:04]} Rd7 {[%emt 0:01:28]} 32. Kf2 {[%emt 0:02:53]} c5 {[%emt 0:00:36]} 33. b5 {[%emt 0:00:45]} Nc7 {[%emt 0:00:30]} 34. a4 {[%emt 0:00:06]} d5 {[%emt 0:00:45]} 35. Red1 {[%emt 0:00:36]} Ne6 {[%emt 0:01:59]} 36. Be5 {[%emt 0:02:12]} Rf8 {[%emt 0:01:32]} 37. Rd2 {[%emt 0:03:50]} f4 {[%emt 0:01:09]} 38. exf4 {[%emt 0:00:42]} Nxf4 {[%emt 0:00:18]} 39. Rcd1 {[%emt 0:00:28]} d4 {[%emt 0:00:27]} 40. Re1 {[%emt 0:00:29]} g4 {[%emt 0:00:32]} 41. Bxf4 {[%emt 0:00:48]} Rxf4 {[%emt 0:00:50]} 42. Re8+ {[%emt 0:01:10]} Kf7 {[%emt 0:00:34]} 43. Re4 {[%emt 0:01:58]} Rxe4 {[%emt 0:00:27]} 44. fxe4 {[%emt 0:00:15]} Kg6 {[%emt 0:00:23]} 45. Kg3 {[%emt 0:00:37]} Kg5 {[%emt 0:00:25]} 46. h4+ {[%emt 0:00:28]} Kg6 {[%emt 0:00:07]} 47. Kf4 {[%emt 0:00:54]} c4 {[%emt 0:02:27]} 48. e5 {[%emt 0:02:27]} d3 {[%emt 0:00:37]} 49. Ke4 {[%emt 0:01:23]} Kf7 {[%emt 0:02:57]} 50. Rd1 {[%emt 0:00:56]} d2 {[%emt 0:00:29]} 51. Kf5 {[%emt 0:00:35]} Rd5 {[%emt 0:00:58]} 52. Ke4 {[%emt 0:00:43]} Ke6 {[%emt 0:02:35]} 53. g3 {[%emt 0:01:49]} c3 {[%emt 0:00:21]} 54. Ke3 {[%emt 0:01:09]} Kxe5 {[%emt 0:00:09]} 55. Ke2 {[%emt 0:00:11]} c2 {[%emt 0:00:33]} 56. Rxd2 {[%emt 0:00:26]} c1=Q {[%emt 0:00:04]} 57. Rxd5+ {[%emt 0:00:15]} Kxd5 {[%emt 0:00:03]} 58. Kd3 {[%emt 0:00:12]} Qc4+ {[%emt 0:00:05]} 59. Ke3 {[%emt 0:00:05]} Qd4+ {[%emt 0:00:11]} 60. Ke2 {[%emt 0:00:10]} Qc3 {[%emt 0:00:04]} 61. Kf1 {[%emt 0:00:22]} Qd2 {[%emt 0:00:10]} 62. Kg1 {[%emt 0:00:11]} Ke4 {[%emt 0:00:06]} 63. Kf1 {[%emt 0:00:11]} Kf3 {[%emt 0:00:04]} 64. Kg1 {[%emt 0:00:09]} Qg2# {[%emt 1:08:53]} 0-1